[Event "ChessKid Cup Div-III 2023"]
[Site "Online"]
[Date "2023.05.22"]
[Round "2.2"]
[White "Vallejo Pons, Francisco"]
[Black "Kamsky, Gata"]
[Result "1-0"]
[ECO "C47"]
[WhiteElo "2712"]
[BlackElo "2665"]
[Annotator "TA"]
[PlyCount "99"]
[EventDate "2023.05.21"]
[EventType "k.o."]
[EventCountry "NET"]
[SourceTitle "playchess.com"]
[Source "ChessBase"]
[SourceQuality "1"]
[TimeControl "900+3"]

{[%evp 9,99,-17,-20,-18,39,29,30,35,48,-7,-7,12,65,56,85,80,73,67,78,77,76,60,83,77,98,60,44,22,50,-46,-46,-31,-59,-80,-60,-52,-44,-65,0,0,0,0,0,0,0,-12,0,-10,0,-10,187,189,1093,68,71,66,218,187,181,116,218,0,0,0,0,0,0,0,3,0,8,0,12,12,19,20,442,403,345,323,29976,29979,29979,29980,29980,29980,29981,29982,29982,29983,29983,29984]} 1. e4 {[%emt 0:00:06]} e5 {[%emt 0:00:10]} 2. Nf3 {[%emt 0:00:02]} Nc6 {[%emt 0:00:01]} 3. Nc3 {[%emt 0:00:01]} Nf6 {[%emt 0:00:08]} 4. h3 {[%emt 0:00:00]} Bb4 {[%emt 0:01:28]} 5. a3 {[%emt 0:00:03]} Bxc3 {[%emt 0:00:08]} 6. dxc3 {[%emt 0:00:00] C47: Scotch Four Knights and Four Knights with 4 g3.} O-O {[%emt 0:00:28]} (6... Nxe4 $11 7. Nxe5 Nxe5) 7. Bg5 $14 {[%emt 0:00:06][%cal Bc1g5,Bg5h4,Bh4g3,Bg3f2][%mdl 32]} h6 {[%emt 0:01:58]} 8. Bh4 {[%emt 0:00:02] [#] White has an edge.} Qe7 $146 {[%emt 0:00:15]} ({Predecessor:} 8... d6 9. Nd2 Be6 10. Bd3 Ne7 11. Bxf6 gxf6 12. Qh5 Kg7 13. g3 c6 14. f4 b5 {1-0 Vallejo Pons,F (2712)-Vaibhav,S (2595) ChessKid Cup Play In blitz 2023 (4)}) 9. Qe2 {[%emt 0:03:52]} (9. Bd3 $14) 9... g5 $11 {[%emt 0:00:55]} 10. Bg3 {[%emt 0:00:03]} d6 {[%emt 0:00:49]} ({Better is} 10... d5 $11) 11. Nd2 $14 {[%emt 0:00:49]} Kg7 {[%emt 0:03:50]} 12. h4 {[%emt 0:01:45]} Be6 {[%emt 0:00:10]} 13. O-O-O {[%emt 0:00:17]} Rh8 {[%emt 0:00:05]} 14. f3 {[%emt 0:00:57]} Nh5 {[%emt 0:01:19]} 15. Bf2 {[%emt 0:00:03]} Qf6 {[%emt 0:02:52]} 16. g3 {[%emt 0:01:41]} Qg6 {[%emt 0:00:03]} 17. Qe3 {[%emt 0:00:12]} g4 {[%emt 0:00:13]} 18. c4 {[%emt 0:02:57]} Kh7 {[%emt 0:00:24]} (18... gxf3 {is interesting.} 19. Bd3 Nf6 20. Rdf1 Nd4) 19. f4 {[%emt 0:00:49]} ({White should play} 19. c5 $14) 19... exf4 $15 {[%emt 0:00:04]} 20. gxf4 {[%emt 0:00:01] f5 is the strong threat.} f5 {[%emt 0:00:01]} 21. c5 {[%emt 0:00:00]} Rhf8 {[%emt 0:00:05]} 22. cxd6 {[%emt 0:00:36]} cxd6 {[%emt 0:00:01]} 23. Nc4 {[%emt 0:00:14][%cal Bd2c4,Bc4d6,Bd6e4,Be4f2,Bf2g4][%mdl 32]} fxe4 {[%emt 0:00:03]} (23... Bxc4 $1 $15 24. Bxc4 fxe4) 24. Nxd6 $11 {[%emt 0:00:35] Hoping for Bg2.} Rxf4 {[%emt 0:00:03] Strongly threatening ...g3.} (24... Nxf4 25. h5 Qg5 26. Nxe4 $14 (26. Qxe4+ Bf5 $14)) 25. Bg2 {[%emt 0:00:03][%cal Rg2e4]} g3 {[%emt 0:00:17]} 26. Bxe4 {[%emt 0:00:46]} Rxe4 {[%emt 0:00:02]} 27. Nxe4 {[%emt 0:00:00]} gxf2 {[%emt 0:00:02]} 28. Nxf2 {[%emt 0:00:05]} Bf5 {[%emt 0:00:01]} 29. Rhg1 {[%emt 0:00:03]} Qf6 {[%emt 0:00:03]} (29... Re8 $11 30. Qb3 Qe6 31. Qxe6 Rxe6) 30. Ng4 $18 {[%emt 0:00:09]} Qe6 {[%emt 0:00:03] [#]} (30... Qxh4 31. Qxh6+ Kg8 32. Ne5+) (30... Bxg4 31. Rxg4 Rf8) 31. Qxe6 $2 {[%emt 0:00:12]} (31. Rd7+ $1 $18 Kh8 32. Qc3+ (32. Rxb7 Bxg4 33. Qc3+ Kg8 $11) 32... Nf6 33. Nxf6 (33. Qxf6+ Qxf6 34. Nxf6 Bxd7 $16)) 31... Bxe6 $14 {[%emt 0:00:01]} 32. Rd6 {[%emt 0:00:02]} Bxg4 {[%emt 0:00:05]} ({Black should try} 32... Nf4 $14) 33. Rxg4 $18 {[%emt 0:00:01]} Re8 {[%emt 0:00:09]} 34. Rgg6 {[%emt 0:00:06]} (34. Rd7+ $18 Re7 35. Rxe7+ Nxe7 36. Rb4) 34... Nf4 {[%emt 0:00:02] [#]} (34... Re5 $16 35. Rxh6+ Kg7) 35. Rxh6+ $2 {[%emt 0:00:02]} ({White must play} 35. Rgf6 $1 $18 {[%cal Rf6f7]} Nd4 36. Kd1 (36. Rxd4 Ne2+ 37. Kd2 Nxd4 $17) (36. Rxh6+ $2 Kg7 $17)) 35... Kg7 $11 {[%emt 0:00:01]} 36. Rxc6 {[%emt 0:00:03]} bxc6 {[%emt 0:00:02]} 37. Rxc6 {[%emt 0:00:00][%mdl 4096] Endgame KRN-KR} Re7 {[%emt 0:00:02]} 38. b4 {[%emt 0:00:04]} Nd5 {[%emt 0:00:03]} 39. Kb2 {[%emt 0:00:03]} Kf7 {[%emt 0:00:01]} 40. h5 {[%emt 0:00:03][%cal Bh4h5,Bh5h6][%mdl 32]} Re5 {[%emt 0:00:03]} 41. h6 {[%emt 0:00:05]} Rh5 {[%emt 0:00:04]} 42. Ra6 {[%emt 0:00:02]} Nb6 $2 {[%emt 0:00:05][%mdl 8192]} (42... Ke8 $11) 43. Rxa7+ $18 {[%emt 0:00:04]} Kg8 {[%emt 0:00:08]} 44. h7+ {[%emt 0:00:03]} Rxh7 $2 {[%emt 0:00:03]} (44... Kh8 $18 45. a4 Rh3) 45. Rxh7 {[%emt 0:00:00] White mates.} Kxh7 {[%emt 0:00:00] KN-K3P} 46. Kb3 {[%emt 0:00:02]} Kg7 {[%emt 0:00:01]} 47. a4 {[%emt 0:00:02][%cal Ba3a4,Ba4a5][%mdl 32]} Kf7 {[%emt 0:00:01]} 48. a5 {[%emt 0:00:01]} Nc8 {[%emt 0:00:00]} 49. b5 {[%emt 0:00:10][%cal Bb4b5,Bb5b6][%mdl 32]} Ke6 {[%emt 0:00:01]} 50. b6 {[%emt 0:00:04] Weighted Error Value: White=0.30/Black=0.49} 1-0

[Event "ChessKid Cup Div-III 2023"]
[Site "Online"]
[Date "2023.05.22"]
[Round "2.2"]
[White "Tari, Aryan"]
[Black "Pichot, Alan"]
[Result "0-1"]
[ECO "C70"]
[WhiteElo "2642"]
[BlackElo "2638"]
[Annotator "TA"]
[PlyCount "90"]
[EventDate "2023.05.21"]
[EventType "k.o."]
[EventCountry "NET"]
[SourceTitle "playchess.com"]
[Source "ChessBase"]
[SourceQuality "1"]
[TimeControl "900+3"]

{[%evp 9,90,30,45,29,70,6,18,23,43,33,45,52,95,56,50,55,111,101,97,61,60,60,70,69,57,56,56,-20,0,-13,0,-14,-3,-32,0,-79,-81,-291,54,62,53,41,91,53,109,50,57,31,69,-5,-11,-11,0,-70,-67,-69,-65,-74,-9,-14,17,-120,-124,-200,0,-32,-28,-82,-74,-107,-121,-122,-96,-404,-375,-29985,-29986,-29987,-29973,-29984,-2010,-29985,-5243]} 1. e4 {[%emt 0:00:05]} e5 {[%emt 0:00:08]} 2. Nf3 {[%emt 0:00:02]} Nc6 {[%emt 0:00:01]} 3. Bb5 {[%emt 0:00:18]} a6 {[%emt 0:00:02]} 4. Ba4 {[%emt 0:00:01]} Nge7 {[%emt 0:00:35]} 5. c3 {[%emt 0:02:05]} Ng6 {[%emt 0:00:04]} 6. d4 {[%emt 0:00:01] C70: Ruy Lopez: 3...a6 4 Ba4, Norwegian and Delayed Schliemann.} exd4 {[%emt 0:00:02]} 7. h4 {[%emt 0:00:00]} ({Better is} 7. cxd4 $14 Be7 8. Nc3) 7... d3 {[%emt 0:02:22]} 8. Qxd3 {[%emt 0:00:16] [#] The position is equal.} Bd6 $146 {[%emt 0:03:19]} ({Predecessor:} 8... h5 9. Be3 Be7 10. Nbd2 d6 11. O-O-O Bd7 12. Bb3 Nce5 13. Nxe5 Nxe5 14. Qe2 a5 {1-0 Svane,F (2600)-Narayanan,S (2661) Jermuk Avagyan Memorial 2023 (5)}) 9. Bg5 {[%emt 0:01:09]} f6 {[%emt 0:00:48]} 10. Be3 {[%emt 0:00:18]} O-O {[%emt 0:00:23]} 11. Nbd2 {[%emt 0:00:57]} Nf4 {[%emt 0:00:21]} 12. Qf1 {[%emt 0:01:13]} Ne5 {[%emt 0:00:49]} 13. Bb3+ $16 {[%emt 0:01:48]} ({Don't play} 13. Bxf4 Nxf3+ 14. Nxf3 Bxf4 $14) 13... Kh8 {[%emt 0:00:16]} 14. Nxe5 {[%emt 0:00:24]} ({Reject} 14. Bxf4 Nxf3+ 15. Nxf3 Bxf4 $14) 14... fxe5 {[%emt 0:00:02]} 15. Nc4 {[%emt 0:01:21]} Qe7 $1 {[%emt 0:00:18]} 16. O-O-O {[%emt 0:01:39]} Bc5 {[%emt 0:00:09]} 17. Bxc5 $1 {[%emt 0:00:56]} Qxc5 {[%emt 0:00:04]} 18. Ne3 {[%emt 0:00:01]} (18. g3 $14 Ne6 19. Rd5) 18... a5 {[%emt 0:00:47]} 19. g3 {[%emt 0:00:48]} a4 {[%emt 0:00:30]} 20. Bc4 {[%emt 0:00:01]} Nh5 {[%emt 0:02:32][%cal Ob7b5] Strongly threatening ...b5!} 21. Rd5 {[%emt 0:00:48]} Qe7 {[%emt 0:00:04] Threatens to win with ...Nxg3.} 22. Nf5 {[%emt 0:00:12]} (22. Qe2 $11 Nf6 23. Rd2 (23. Nf5 Qe8 $15)) 22... Qe8 $1 $17 {[%emt 0:00:03] aiming for ...a3.} 23. Rc5 $2 {[%emt 0:00:58]} (23. Rd2 $17 {was worth a try.}) 23... d6 $2 {[%emt 0:00:23]} (23... g6 $19 24. Qd3 gxf5 25. exf5 Ng7 26. Rxc7 Rxf5) 24. Rxc7 $14 {[%emt 0:00:06]} Qd8 {[%emt 0:00:50]} 25. Rf7 {[%emt 0:00:08] Black is weak on the light squares} a3 {[%emt 0:00:00] [#]} ({Black should try} 25... Rxf7 $14 26. Bxf7 a3) 26. Rxf8+ $1 $16 {[%emt 0:00:22]} Qxf8 {[%emt 0:00:02] [#]} 27. Ne3 {[%emt 0:00:00]} (27. Qd3 $1 $16) 27... axb2+ {[%emt 0:00:39]} 28. Kxb2 {[%emt 0:00:00]} (28. Kb1 {with more complications.} Nf6 29. Qd3 Bd7 30. Rf1) 28... Qf3 {[%emt 0:00:01][%cal Oh5f6]} 29. Bd5 {[%emt 0:00:12]} (29. Rg1 $1 $14) 29... Nf6 $11 {[%emt 0:00:10][%cal Oc8d7]} 30. Qe1 {[%emt 0:00:17]} Nxd5 {[%emt 0:00:07]} 31. Nxd5 {[%emt 0:00:00]} ({White has to play} 31. exd5 $11 b5 32. Rh2) 31... Be6 $15 {[%emt 0:00:01]} 32. Nb4 {[%emt 0:00:01]} Rf8 {[%emt 0:00:15][%cal Of3g2] Black is much more active.} 33. Rh2 {[%emt 0:00:02]} Rc8 {[%emt 0:00:03]} ({Black should play} 33... Bf7 $17) 34. Qe3 $11 {[%emt 0:00:07]} Rf8 {[%emt 0:00:21]} 35. Qd2 {[%emt 0:00:02]} (35. Qxf3 $11 Rxf3 36. Nd5) 35... Qxe4 $17 {[%emt 0:00:04]} 36. Qxd6 {[%emt 0:00:03]} (36. f4 $17 {was called for.}) 36... Re8 $2 {[%emt 0:00:02]} (36... Qe2+ $19 37. Nc2 Re8) 37. f4 {[%emt 0:00:02]} Bf5 {[%emt 0:00:02] And now ...Qb1+ would win.} 38. Qd1 {[%emt 0:00:07] Prevents Qb1+} (38. Nc2 $11) 38... exf4 {[%emt 0:00:03]} 39. gxf4 {[%emt 0:00:00]} Qxf4 {[%emt 0:00:03]} 40. Re2 {[%emt 0:00:03][%cal Re2e8]} Rc8 $40 {[%emt 0:00:04][%mdl 128] Black attacks with force.} 41. Qd4 $2 {[%emt 0:00:03][%mdl 8192]} (41. Qe1 $17 h6 42. Rg2) 41... Qf1 $19 {[%emt 0:00:10]} 42. Ka3 $2 {[%emt 0:00:08]} (42. Rc2 $19 Bxc2 43. Nxc2) 42... Qxe2 {[%emt 0:00:02]} 43. Nd5 {[%emt 0:00:01]} Qa6+ {[%emt 0:00:03]} 44. Kb2 {[%emt 0:00:01]} Qd6 {[%emt 0:00:02]} (44... Qb5+ $142 45. Nb4 Qe2+ 46. Ka3 Ra8+ 47. Kb3 Be6+ 48. c4 b5 49. Qf4 bxc4+ 50. Kc3 Qe1+ {[%mdl 64] Skewer, Deflection} 51. Kd4 Qxb4 52. Ke4 Qb7+ 53. Ke3 Ra3+ 54. Kf2 Rxa2+ 55. Ke3 Qb3+ 56. Kd4 Qd3+ 57. Kc5 Qd5+ 58. Kb6 Rb2+ 59. Kc7 Qd7#) 45. h5 {[%emt 0:00:03]} h6 {[%emt 0:00:02] Weighted Error Value: White=0.63/Black=0.45} (45... Qh2+ $142 46. Ka3 Ra8+ {[%mdl 64] Skewer} 47. Kb4 Qd6+ 48. Qc5 Ra4+ {[%mdl 64] Deflection} 49. Kxa4 Qxc5 50. Kb3 Qxd5+ 51. c4 Qd2 52. Ka4 Qb2 53. Ka5 Bd7 54. h6 gxh6 55. a3 Qb3 56. a4 Bxa4 57. c5 Qb5#) 0-1

[Event "ChessKid Cup Div-III 2023"]
[Site "Online"]
[Date "2023.05.22"]
[Round "2.2"]
[White "Chigaev, Maksim"]
[Black "Sevian, Samuel"]
[Result "1/2-1/2"]
[ECO "B03"]
[WhiteElo "2628"]
[BlackElo "2684"]
[Annotator "TA"]
[PlyCount "77"]
[EventDate "2023.05.21"]
[EventType "k.o."]
[EventCountry "NET"]
[SourceTitle "playchess.com"]
[Source "ChessBase"]
[SourceQuality "1"]
[TimeControl "900+3"]

{[%evp 27,77,43,50,25,58,55,63,58,44,37,63,0,0,0,0,0,0,0,22,16,12,-17,-13,-11,-10,-14,0,-4,19,0,0,0,0,0,0,0,0,0,0,0,0,0,0,0,0,0,0,0,0,0,0,0]} 1. e4 {[%emt 0:00:04][%cal Be2e4,Be4e5][%mdl 32]} Nf6 {[%emt 0:00:08]} 2. e5 {[%emt 0:00:05]} Nd5 {[%emt 0:00:00]} 3. d4 {[%emt 0:00:00]} d6 {[%emt 0:00:01]} 4. c4 {[%emt 0:00:01]} Nb6 {[%emt 0:00:00]} 5. f4 {[%emt 0:00:00]} dxe5 {[%emt 0:00:08]} 6. fxe5 {[%emt 0:00:01]} Bf5 {[%emt 0:00:00]} 7. Be3 {[%emt 0:00:01]} e6 {[%emt 0:00:03]} 8. Nc3 {[%emt 0:00:01]} Nc6 {[%emt 0:00:06]} 9. Nf3 {[%emt 0:00:09]} Be7 {[%emt 0:00:24]} 10. Be2 {[%emt 0:00:02]} O-O {[%emt 0:00:01]} 11. O-O {[%emt 0:00:01]} f6 {[%emt 0:00:00]} 12. exf6 {[%emt 0:00:02]} Bxf6 {[%emt 0:00:00]} 13. Qd2 {[%emt 0:00:03]} Qe7 {[%emt 0:00:01]} 14. Rad1 {[%emt 0:00:05]} Rad8 {[%emt 0:00:01]} 15. Kh1 {[%emt 0:01:01] seems to push 15.Qc1 aside. B03: Alekhine's Defence: Four Pawns Attack.} Kh8 {[%emt 0:00:02]} 16. h3 {[%emt 0:00:25]} Bg6 {[%emt 0:00:17][%cal Oc6d4]} 17. Qc1 {[%emt 0:00:37] White is slightly better.} h6 {[%emt 0:00:10]} 18. b3 {[%emt 0:00:47] [#]} Bh5 $146 {[%emt 0:00:02] [#]} ({Predecessor:} 18... Nc8 19. c5 a6 20. Bg1 Nb4 21. a3 Nd5 22. Rde1 Qd7 23. Bc4 Nce7 24. Ne4 Nc6 25. Nxf6 Rxf6 {1-0 Repanic,F (2383)-Rimsans,A (2343) EU-ch 2019 sf13 email}) 19. Ne5 {[%emt 0:01:43]} Bxe5 $11 {[%emt 0:00:11] The position is equal.} 20. dxe5 {[%emt 0:00:31]} Bxe2 {[%emt 0:00:37]} 21. Nxe2 {[%emt 0:00:00]} Rxd1 {[%emt 0:00:19]} 22. Rxd1 {[%emt 0:00:07][%cal Oe3h6]} Nxe5 {[%emt 0:00:00]} 23. Qc3 {[%emt 0:01:45]} Nbd7 {[%emt 0:00:17]} 24. Nf4 {[%emt 0:02:26][%cal Od1d7] Threatens to win with Rxd7!} Kg8 {[%emt 0:00:09]} 25. Qa5 {[%emt 0:00:16]} b6 {[%emt 0:00:38]} 26. Qxa7 {[%emt 0:00:10]} Nc5 {[%emt 0:00:01] aiming for ...Ne4.} 27. Qa3 $1 {[%emt 0:01:32]} Rf5 {[%emt 0:00:02]} 28. b4 {[%emt 0:01:26]} Nxc4 {[%emt 0:00:09] A dynamic duo of knights.} 29. Qc1 {[%emt 0:00:12]} Nxe3 {[%emt 0:00:22]} 30. Qxe3 {[%emt 0:00:01]} Qf7 {[%emt 0:00:11]} 31. bxc5 {[%emt 0:00:19]} Rxf4 {[%emt 0:00:01]} 32. cxb6 {[%emt 0:00:01]} cxb6 {[%emt 0:00:02]} 33. Qxb6 {[%emt 0:00:03][%mdl 4096] Endgame KQR-KQR} Kh7 {[%emt 0:00:01]} 34. Qb1+ {[%emt 0:00:08]} Qg6 {[%emt 0:00:19]} 35. Kg1 {[%emt 0:00:30]} Qxb1 {[%emt 0:00:16]} 36. Rxb1 {[%emt 0:00:02]} Ra4 {[%emt 0:00:02]} 37. Re1 {[%emt 0:00:17]} Ra6 {[%emt 0:00:01]} 38. a4 {[%emt 0:00:05][%mdl 64] [#] Deflection} Rxa4 {[%emt 0:00:02]} 39. Rxe6 {[%emt 0:00:01] Weighted Error Value: White=0.06 (flawless) /Black=0.05 (flawless)} 1/2-1/2

[Event "ChessKid Cup Div-III 2023"]
[Site "Online"]
[Date "2023.05.22"]
[Round "2.2"]
[White "Lysyj, Igor"]
[Black "Keymer, Vincent"]
[Result "1/2-1/2"]
[ECO "E11"]
[WhiteElo "2606"]
[BlackElo "2700"]
[Annotator "TA"]
[PlyCount "72"]
[EventDate "2023.05.21"]
[EventType "k.o."]
[EventCountry "NET"]
[SourceTitle "playchess.com"]
[Source "ChessBase"]
[SourceQuality "1"]
[TimeControl "900+3"]

{[%evp 16,72,14,4,28,-4,23,13,27,0,19,21,19,13,23,23,23,23,23,33,34,35,35,25,38,0,0,0,0,0,1,0,0,-26,-6,-14,-20,-15,-13,-45,-45,-46,-33,-45,-18,-18,-10,-14,-6,-18,0,-20,0,-28,0,-19,0,-32,0]} 1. d4 {[%emt 0:00:05]} Nf6 {[%emt 0:00:05]} 2. c4 {[%emt 0:00:01]} e6 {[%emt 0:00:00]} 3. Nf3 {[%emt 0:00:01]} d5 {[%emt 0:00:01]} 4. g3 {[%emt 0:00:02]} Bb4+ {[%emt 0:00:03]} 5. Bd2 {[%emt 0:00:02]} Be7 {[%emt 0:00:01]} 6. Bg2 {[%emt 0:00:01]} O-O {[%emt 0:00:00]} 7. O-O {[%emt 0:00:02]} c6 {[%emt 0:00:00]} 8. Qc2 {[%emt 0:00:02]} Nbd7 {[%emt 0:00:02]} 9. Rd1 {[%emt 0:00:02]} a5 {[%emt 0:00:41] E11: Bogo-Indian.} 10. Be1 {[%emt 0:00:04]} Ne4 {[%emt 0:00:13] [#]} (10... b5 $5 {[%cal Rb5c4]}) 11. Nc3 $146 {[%emt 0:00:24]} ({Predecessor:} 11. Nfd2 f5 12. Nxe4 fxe4 13. f3 Nb6 14. c5 exf3 15. exf3 Nd7 16. Qe2 e5 17. dxe5 Bxc5+ {0-1 Abdisalimov,A (2406)-Mosadeghpour,M (2486) Dhaka Sheikh Russel op 2021 (2)}) 11... f5 {[%emt 0:00:05] The position is equal.} 12. e3 {[%emt 0:00:25]} Bd6 {[%emt 0:00:52]} 13. a3 {[%emt 0:00:57][%cal Ob2b4]} Qe7 {[%emt 0:01:22]} 14. Rab1 {[%emt 0:00:24][%cal Ob2b4]} g5 {[%emt 0:01:22][%cal Bg7g5,Bg5g4][%mdl 32] [#]} 15. b4 $1 {[%emt 0:00:34]} g4 {[%emt 0:00:12]} 16. Nh4 {[%emt 0:00:03]} axb4 {[%emt 0:00:58]} (16... dxc4 17. Nxe4 fxe4 18. bxa5 $16 (18. Qxc4 axb4 19. Bxb4 Bxb4 $16)) 17. axb4 {[%emt 0:00:04]} Ndf6 {[%emt 0:00:07]} 18. b5 {[%emt 0:01:21]} Bd7 {[%emt 0:00:37]} ({Not} 18... dxc4 19. bxc6 bxc6 20. Bxe4 fxe4 21. Nxe4 $16) 19. bxc6 {[%emt 0:01:25]} bxc6 {[%emt 0:00:02]} ({Don't do} 19... Bxc6 20. cxd5 Nxd5 21. Nxe4 $16) 20. Ne2 {[%emt 0:00:46][%cal Bc3e2,Be2f4,Bf4d3,Bd3b4][%mdl 32]} Rfc8 {[%emt 0:00:38]} 21. c5 {[%emt 0:00:46]} Bc7 {[%emt 0:00:04]} 22. Nf4 {[%emt 0:00:10]} Ra7 {[%emt 0:00:37]} 23. Nd3 {[%emt 0:00:18]} Rca8 {[%emt 0:00:11]} 24. Rb2 {[%emt 0:00:02]} Bc8 {[%emt 0:00:21]} 25. Nb4 {[%emt 0:00:12]} Qe8 {[%emt 0:00:21]} 26. Rdb1 {[%emt 0:00:08]} Ng5 {[%emt 0:00:25]} 27. Nd3 {[%emt 0:00:57]} Ba6 {[%emt 0:00:30]} 28. Nf4 {[%emt 0:00:25]} Nfe4 {[%emt 0:00:28]} 29. Qd1 {[%emt 0:01:26]} Bc8 {[%emt 0:00:15]} 30. Nd3 {[%emt 0:00:41]} Ra3 {[%emt 0:00:15]} 31. Bb4 {[%emt 0:00:10]} R3a4 {[%emt 0:00:19]} 32. f3 {[%emt 0:00:13]} Nf6 {[%emt 0:00:28]} 33. Be1 {[%emt 0:00:26]} Ra3 {[%emt 0:00:06]} 34. Bb4 {[%emt 0:00:03]} (34. f4 $5 {[%cal Rf4g5]} Nge4 35. Bb4 $15) 34... R3a4 {[%emt 0:00:01]} 35. Be1 {[%emt 0:00:01]} Ra3 {[%emt 0:00:17]} 36. Bb4 {[%emt 0:00:01]} R3a4 {[%emt 0:00:00] Weighted Error Value: White=0.09 (flawless) /Black=0.08 (flawless)} 1/2-1/2

[Event "ChessKid Cup Div-III 2023"]
[Site "Online"]
[Date "2023.05.22"]
[Round "2.2"]
[White "Bernadskiy, Vitaliy"]
[Black "Harshavardhan G B"]
[Result "1/2-1/2"]
[ECO "B51"]
[WhiteElo "2592"]
[BlackElo "2408"]
[Annotator "TA"]
[PlyCount "121"]
[EventDate "2023.05.21"]
[EventType "k.o."]
[EventCountry "NET"]
[SourceTitle "playchess.com"]
[Source "ChessBase"]
[SourceQuality "1"]
[TimeControl "900+3"]

{[%evp 9,121,11,19,16,29,25,67,62,50,57,73,41,74,76,115,65,57,47,76,94,87,94,97,29,39,7,0,12,11,0,0,0,0,-9,2,-8,-14,-16,0,0,0,-12,-12,-28,-22,-14,-45,-129,-129,-141,-103,-105,-101,-149,-113,-166,0,0,0,0,0,0,0,0,0,0,-1,-8,0,0,0,0,0,0,0,0,0,0,0,0,0,0,0,0,0,0,0,0,0,0,0,0,0,0,0,0,0,0,0,0,8,0,0,0,0,0,0,0,0,0,0,0,0,0]} 1. e4 {[%emt 0:00:06]} c5 {[%emt 0:00:08]} 2. Nf3 {[%emt 0:00:01]} d6 {[%emt 0:00:05]} 3. Bb5+ {[%emt 0:00:03]} Nd7 {[%emt 0:00:03]} 4. O-O {[%emt 0:00:09]} a6 {[%emt 0:00:07]} 5. Bd3 {[%emt 0:00:19]} Ngf6 {[%emt 0:00:04]} 6. c3 {[%emt 0:00:02] B51: Sicilian: Moscow Variation (3 Bb5+) without 3...Bd7.} b5 {[%emt 0:00:04]} 7. a4 {[%emt 0:00:02]} c4 {[%emt 0:00:19]} 8. Be2 {[%emt 0:00:01] White is slightly better.} Bb7 {[%emt 0:00:07]} (8... Nxe4 9. axb5 Bb7 10. Bxc4 $16) 9. axb5 {[%emt 0:00:01]} axb5 {[%emt 0:00:05]} (9... Bxe4 10. bxa6 (10. Bxc4 axb5 {[%mdl 64] Discovered Attack} 11. Rxa8 Qxa8 $11) 10... Qc8 11. d3 Bxf3 12. Bxf3 (12. gxf3 Rxa6 13. Rxa6 Qxa6 $16) 12... Rxa6 13. Rxa6 Qxa6 14. dxc4 $16) 10. Rxa8 {[%emt 0:00:00]} Qxa8 {[%emt 0:00:06]} 11. Na3 $1 {[%emt 0:00:01]} Bc6 {[%emt 0:00:04] [#]} 12. d3 {[%emt 0:00:11]} (12. Nd4 $1 $16) 12... cxd3 {[%emt 0:01:34]} 13. Bxd3 {[%emt 0:00:00] [#] Black must now prevent Nd4.} Qb7 $146 {[%emt 0:00:03]} ({Predecessor:} 13... Bxe4 14. Nxb5 Bxf3 15. gxf3 Qc6 16. Re1 e6 17. Nd4 Qb7 18. Qa4 Be7 19. Nc6 Bd8 {½-½ Ciric,P (2177)-Trisic,A (2333) Novi Sad Serbia op-A 2022 (2)}) 14. Nd4 {[%emt 0:00:05] Threatens to win with Nxc6.} Bxe4 {[%emt 0:00:02]} 15. Bxe4 {[%emt 0:00:01]} (15. Bxb5 e5 $14) 15... Nxe4 {[%emt 0:00:02]} 16. Re1 {[%emt 0:00:37]} ({But not} 16. Naxb5 $6 e5 $11) ({Much less strong is} 16. f3 b4) (16. Ndxb5 $16 e6 17. f3 Qb6+ 18. Qd4 Qxd4+ {[%mdl 64] Remove Defender} 19. cxd4) 16... e6 {[%emt 0:00:21]} 17. Naxb5 {[%emt 0:00:29]} ({Much weaker is} 17. Ndxb5 d5 $11) (17. Bf4 $5 {[%cal Ra3b5]}) 17... Be7 {[%emt 0:00:22]} 18. c4 {[%emt 0:01:26]} O-O {[%emt 0:00:09]} 19. Qf3 {[%emt 0:00:03]} d5 {[%emt 0:00:04]} 20. cxd5 {[%emt 0:00:02]} exd5 {[%emt 0:00:01]} 21. Nc3 {[%emt 0:01:06]} Ndf6 {[%emt 0:00:20]} 22. Nxe4 {[%emt 0:00:53]} Nxe4 {[%emt 0:00:17]} 23. Qb3 {[%emt 0:00:15]} Qa8 {[%emt 0:01:18]} (23... Qxb3 {simplifies} 24. Nxb3 Rb8 25. Re3 Bh4) 24. Nf5 {[%emt 0:00:16]} Bf6 $40 {[%emt 0:00:09][%mdl 128] Black has some attack.} 25. Ng3 {[%emt 0:00:17]} Rb8 {[%emt 0:01:00]} 26. Qa3 {[%emt 0:00:16]} Qxa3 {[%emt 0:00:13]} 27. bxa3 {[%emt 0:00:00]} Bc3 {[%emt 0:00:02]} 28. Rf1 {[%emt 0:01:09] [#]} (28. Rd1 $15) 28... Nxg3 $1 $17 {[%emt 0:00:04]} 29. hxg3 {[%emt 0:00:42][%mdl 4096] Endgame KRB-KRB} d4 {[%emt 0:00:20]} 30. Bf4 {[%emt 0:00:02]} Rb3 {[%emt 0:00:16][%cal Of7f6]} 31. Bd6 {[%emt 0:00:29]} (31. Rd1 $142) 31... f6 {[%emt 0:00:13]} 32. Rd1 {[%emt 0:00:05]} (32. f4 $17 {was called for.}) 32... Rb5 $2 {[%emt 0:00:21]} (32... Kf7 $19 {Strongly threatening ...Ke6.} 33. g4 Ke6) 33. Kf1 $11 {[%emt 0:00:43] The position is equal.} Kf7 {[%emt 0:00:05]} 34. Bb4 $1 {[%emt 0:00:46]} Ke6 {[%emt 0:00:33]} 35. Bxc3 {[%emt 0:00:59]} dxc3 {[%emt 0:00:04] KR-KR} 36. Rc1 {[%emt 0:00:03] Against c2} Rb3 {[%emt 0:00:01]} 37. Ke2 {[%emt 0:00:01]} Rxa3 {[%emt 0:01:11]} 38. Kd3 {[%emt 0:00:02]} Kd5 {[%emt 0:00:01] ...Ra2 would be deadly.} 39. Rxc3 {[%emt 0:00:15]} Ra2 {[%emt 0:00:02]} 40. Ke3 {[%emt 0:00:09]} Ra7 {[%emt 0:00:04]} 41. Kf3 {[%emt 0:00:05]} Ke6 {[%emt 0:00:07]} 42. g4 {[%emt 0:00:01]} Kf7 {[%emt 0:00:05]} 43. Kg3 {[%emt 0:00:01]} Kg6 {[%emt 0:00:02]} 44. f3 {[%emt 0:00:01]} Ra5 {[%emt 0:00:02]} 45. Rd3 {[%emt 0:00:02]} Kg5 {[%emt 0:00:04]} 46. Rd7 {[%emt 0:00:03]} Kg6 {[%emt 0:00:01]} 47. Rb7 {[%emt 0:00:02]} h5 {[%emt 0:00:02]} 48. gxh5+ {[%emt 0:00:01]} Rxh5 {[%emt 0:00:00]} 49. Rb4 {[%emt 0:00:03]} Ra5 {[%emt 0:00:02]} 50. Rg4+ {[%emt 0:00:02]} Kh6 {[%emt 0:00:01]} 51. Rh4+ {[%emt 0:00:01]} Kg6 {[%emt 0:00:01]} 52. Rg4+ {[%emt 0:00:00]} Rg5 {[%emt 0:00:02]} 53. Kf4 {[%emt 0:00:02]} Rxg4+ {[%emt 0:00:01]} 54. Kxg4 {[%emt 0:00:00] KPP-KPP} Kf7 {[%emt 0:00:01]} 55. Kf5 {[%emt 0:00:03]} g6+ {[%emt 0:00:02]} 56. Ke4 {[%emt 0:00:11]} Ke6 {[%emt 0:00:01]} 57. f4 {[%emt 0:00:08]} Kd6 {[%emt 0:00:01]} 58. Kd4 {[%emt 0:00:13]} Ke6 {[%emt 0:00:01]} 59. Ke4 {[%emt 0:00:10]} Kd6 {[%emt 0:00:01]} 60. Kd4 {[%emt 0:00:01]} Ke6 {[%emt 0:00:00]} 61. Ke4 {[%emt 0:00:01] Weighted Error Value: White=0.11 (very precise) /Black=0.10 (very precise)} 1/2-1/2